fUST/lending_fUST_20250129
["ID","MTS","AMOUNT","RATE_DAILY","PERIOD"]
[350740906,1738098646440,-831.37966081,0.00017944,2]
[350740908,1738098646450,-500.0,0.00017945,2]
[350740910,1738098646459,-500.0,0.00017945,2]
[350740912,1738098646469,-500.0,0.00017945,2]
[350740914,1738098646479,-502.18,0.00017945,2]
[350740916,1738098646489,-1304.9,0.00017945,2]
[350740918,1738098646499,-2545.06,0.00017945,2]
[350740920,1738098646509,-767.31,0.00017945,2]
[350740922,1738098646519,-500.0,0.00017945,2]
[350740924,1738098646529,-12732.97,0.00017945,2]
[350740926,1738098646538,-500.0,0.00017945,2]
[350740928,1738098646548,-500.0,0.00017945,2]
[350740930,1738098646558,-1265.09,0.00017945,2]
[350740932,1738098646568,-763.67,0.00017945,2]
[350740935,1738098646578,-1836.67,0.00017945,2]
[350740937,1738098646587,-500.0,0.00017945,2]
[350740939,1738098646597,-537.13,0.00017945,2]
[350740940,1738098646607,-4106.69,0.00017945,2]
[350740942,1738098646616,-564.49,0.00017945,2]
[350740944,1738098646626,-2015.92,0.00017945,2]
[350740946,1738098646636,-517.07,0.00017945,2]
[350740949,1738098646645,-3131.75,0.00017945,2]
[350740950,1738098646655,-1177.23,0.00017945,2]
[350740952,1738098646664,-668.64,0.00017945,2]
[350740955,1738098646674,-1446.56,0.00017945,2]
[350740957,1738098646683,-1552.76,0.00017945,2]
[350740959,1738098646694,-500.0,0.00017945,2]
[350740961,1738098646704,-609.19,0.00017945,2]
[350740963,1738098646714,-1124.09,0.00017945,2]
[350740965,1738098646723,-552.24,0.00017945,2]
[350740967,1738098646732,-554.44,0.00017945,2]
[350740969,1738098646742,-500.0,0.00017945,2]
[350740971,1738098646752,-500.0,0.00018002,2]
[350740984,1738098646859,-500.0,0.00018002,2]
[350740987,1738098646884,-151.0,0.00018071,3]
[350740989,1738098646898,-4970.53,0.00018081,2]
[350740991,1738098646908,-500.0,0.00018082,2]
[350740993,1738098646917,-500.0,0.00018082,2]
[350740995,1738098646927,-500.0,0.00018082,2]
[350740997,1738098646937,-1304.9,0.00018082,2]
[350740999,1738098646949,-2545.06,0.00018082,2]
[350741001,1738098646959,-767.31,0.00018082,2]
[350741003,1738098646969,-500.0,0.00018082,2]
[350741005,1738098646978,-12732.97,0.00018082,2]
[350741007,1738098646988,-500.0,0.00018082,2]
[350741009,1738098646998,-500.0,0.00018082,2]
[350741011,1738098647007,-1265.09,0.00018082,2]
[350741013,1738098647022,-763.67,0.00018082,2]
[350741015,1738098647032,-1836.67,0.00018082,2]
[350741017,1738098647042,-500.0,0.00018082,2]
[350741019,1738098647051,-537.13,0.00018082,2]
[350741021,1738098647064,-4106.69,0.00018082,2]
[350741023,1738098647073,-564.49,0.00018082,2]
[350741025,1738098647083,-2015.92,0.00018082,2]
[350741027,1738098647094,-517.07,0.00018082,2]
[350741029,1738098647104,-3131.75,0.00018082,2]
[350741031,1738098647114,-1177.23,0.00018082,2]
[350741033,1738098647124,-668.64,0.00018082,2]
[350741035,1738098647133,-1446.56,0.00018082,2]
[350741038,1738098647143,-1552.76,0.00018082,2]
[350741040,1738098647153,-500.0,0.00018082,2]
[350741042,1738098647162,-609.19,0.00018082,2]
[350741044,1738098647172,-1124.09,0.00018082,2]
[350741046,1738098647181,-552.24,0.00018082,2]
[350741048,1738098647191,-554.44,0.00018082,2]
[350741050,1738098647200,-500.0,0.00018082,2]
[350741052,1738098647210,-151.0,0.000181,2]
[350741054,1738098647220,-4970.53,0.00018218,2]
[350741056,1738098647229,-160.0,0.00018218,2]
[350741058,1738098647238,-536.91210451,0.00018219,2]
[350741060,1738098647248,-500.0,0.00018219,2]
[350741062,1738098647257,-1304.9,0.00018219,2]
[350741064,1738098647267,-2545.06,0.00018219,2]
[350741066,1738098647277,-767.31,0.00018219,2]
[350741067,1738098647286,-500.0,0.00018219,2]
[350741069,1738098647295,-12732.97,0.00018219,2]
[350741071,1738098647305,-500.0,0.00018219,2]
[350741073,1738098647316,-500.0,0.00018219,2]
[350741075,1738098647325,-1265.09,0.00018219,2]
[350741078,1738098647336,-763.67,0.00018219,2]
[350741080,1738098647346,-1836.67,0.00018219,2]
[350741082,1738098647355,-500.0,0.00018219,2]
[350741084,1738098647365,-537.13,0.00018219,2]
[350741085,1738098647374,-4106.69,0.00018219,2]
[350741087,1738098647384,-564.49,0.00018219,2]
[350741089,1738098647393,-2015.92,0.00018219,2]
[350741091,1738098647403,-517.07,0.00018219,2]
[350741093,1738098647412,-3131.75,0.00018219,2]
[350741095,1738098647422,-1177.23,0.00018219,2]
[350741097,1738098647431,-668.64,0.00018219,2]
[350741099,1738098647441,-1446.56,0.00018219,2]
[350741101,1738098647450,-1552.76,0.00018219,2]
[350741103,1738098647460,-500.0,0.00018219,2]
[350741106,1738098647470,-609.19,0.00018219,2]
[350741108,1738098647480,-1124.09,0.00018219,2]
[350741110,1738098647489,-552.24,0.00018219,2]
[350741112,1738098647499,-554.44,0.00018219,2]
[350741114,1738098647508,-5058.78,0.000183,2]
[350741116,1738098647518,-151.0,0.000183,2]
[350741118,1738098647528,-4970.53,0.00018355,2]
[350741120,1738098647539,-173.31736319,0.00018355,2]
[350741122,1738098647549,-500.0,0.00018356,2]
[350741124,1738098647558,-1304.9,0.00018356,2]
[350741126,1738098647571,-2545.06,0.00018356,2]
[350741128,1738098647581,-767.31,0.00018356,2]
[350741130,1738098647590,-500.0,0.00018356,2]
[350741132,1738098647600,-12732.97,0.00018356,2]
[350741134,1738098647610,-500.0,0.00018356,2]
[350741135,1738098647619,-500.0,0.00018356,2]
[350741137,1738098647629,-1265.09,0.00018356,2]
[350741139,1738098647639,-763.67,0.00018356,2]
[350741141,1738098647649,-1836.67,0.00018356,2]
[350741143,1738098647659,-500.0,0.00018356,2]
[350741145,1738098647668,-537.13,0.00018356,2]
[350741147,1738098647678,-4106.69,0.00018356,2]
[350741149,1738098647689,-564.49,0.00018356,2]
[350741151,1738098647698,-2015.92,0.00018356,2]
[350741153,1738098647708,-517.07,0.00018356,2]
[350741155,1738098647717,-3131.75,0.00018356,2]
[350741157,1738098647727,-1177.23,0.00018356,2]
[350741159,1738098647737,-668.64,0.00018356,2]
[350741161,1738098647749,-1446.56,0.00018356,2]
[350741163,1738098647758,-1552.76,0.00018356,2]
[350741165,1738098647768,-500.0,0.00018356,2]
[350741167,1738098647778,-609.19,0.00018356,2]
[350741169,1738098647788,-1124.09,0.00018356,2]
[350741171,1738098647797,-552.24,0.00018356,2]
[350741173,1738098647807,-554.44,0.00018356,2]
[350741175,1738098647819,-151.0,0.0001844,4]
[350741177,1738098647829,-4970.53,0.00018492,2]
[350741179,1738098647839,-500.0,0.00018493,2]
[350741181,1738098647849,-1304.9,0.00018493,2]
[350741184,1738098647859,-2545.06,0.00018493,2]
[350741186,1738098647869,-767.31,0.00018493,2]
[350741187,1738098647880,-500.0,0.00018493,2]
[350741189,1738098647890,-12732.97,0.00018493,2]
[350741192,1738098647902,-500.0,0.00018493,2]
[350741194,1738098647912,-500.0,0.00018493,2]
[350741195,1738098647922,-1265.09,0.00018493,2]
[350741198,1738098647933,-763.67,0.00018493,2]
[350741200,1738098647943,-1836.67,0.00018493,2]
[350741202,1738098647953,-500.0,0.00018493,2]
[350741204,1738098647964,-537.13,0.00018493,2]
[350741205,1738098647974,-4106.69,0.00018493,2]
[350741207,1738098647984,-564.49,0.00018493,2]
[350741210,1738098647994,-2015.92,0.00018493,2]
[350741212,1738098648004,-517.07,0.00018493,2]
[350741214,1738098648017,-3131.75,0.00018493,2]
[350741215,1738098648028,-1177.23,0.00018493,2]
[350741218,1738098648038,-668.64,0.00018493,2]
[350741219,1738098648048,-1446.56,0.00018493,2]
[350741221,1738098648058,-1552.76,0.00018493,2]
[350741223,1738098648069,-500.0,0.00018493,2]
[350741226,1738098648080,-609.19,0.00018493,2]
[350741228,1738098648089,-1124.09,0.00018493,2]
[350741230,1738098648103,-552.24,0.00018493,2]
[350741232,1738098648113,-554.44,0.00018493,2]
[350741234,1738098648123,-587.0,0.00018562,2]
[350741236,1738098648132,-4970.53,0.00018629,2]
[350741237,1738098648142,-500.0,0.0001863,2]
[350741239,1738098648152,-1304.9,0.0001863,2]
[350741242,1738098648162,-2545.06,0.0001863,2]
[350741243,1738098648172,-767.31,0.0001863,2]
[350741245,1738098648182,-500.0,0.0001863,2]
[350741247,1738098648192,-12732.97,0.0001863,2]
[350741249,1738098648202,-500.0,0.0001863,2]
[350741251,1738098648211,-500.0,0.0001863,2]
[350741253,1738098648221,-1265.09,0.0001863,2]
[350741255,1738098648231,-763.67,0.0001863,2]
[350741257,1738098648241,-1836.67,0.0001863,2]
[350741259,1738098648250,-312.4846698,0.0001863,2]
[350741262,1738098648272,-537.13,0.0001863,2]
[350741264,1738098648284,-4106.69,0.0001863,2]
[350741267,1738098648295,-564.49,0.0001863,2]
[350741269,1738098648306,-2015.92,0.0001863,2]
[350741271,1738098648317,-517.07,0.0001863,2]
[350741273,1738098648328,-3131.75,0.0001863,2]
[350741275,1738098648338,-1177.23,0.0001863,2]
[350741277,1738098648348,-668.64,0.0001863,2]
[350741279,1738098648359,-1446.56,0.0001863,2]
[350741281,1738098648369,-1552.76,0.0001863,2]
[350741283,1738098648380,-500.0,0.0001863,2]
[350741285,1738098648391,-609.19,0.0001863,2]
[350741286,1738098648401,-1124.09,0.0001863,2]
[350741287,1738098648412,-552.24,0.0001863,2]
[350741288,1738098648422,-554.44,0.0001863,2]
[350741289,1738098648432,-817.631,0.00018656,2]
[350741290,1738098648443,-175.88939009,0.00018656,2]
[350741291,1738098648453,-500.0,0.0001866,2]
[350741293,1738098648463,-4970.53,0.00018766,2]
[350741294,1738098648473,-262.71,0.00018767,2]
[350741296,1738098648483,-1304.9,0.00018767,2]
[350741299,1738098648495,-2545.06,0.00018767,2]
[350741301,1738098648505,-767.31,0.00018767,2]
[350741303,1738098648515,-500.0,0.00018767,2]
[350741305,1738098648526,-12732.97,0.00018767,2]
[350741307,1738098648537,-500.0,0.00018767,2]
[350741309,1738098648547,-500.0,0.00018767,2]
[350741310,1738098648558,-1265.09,0.00018767,2]
[350741312,1738098648569,-763.67,0.00018767,2]
[350741315,1738098648580,-1836.67,0.00018767,2]
[350741317,1738098648590,-537.13,0.00018767,2]
[350741318,1738098648603,-4106.69,0.00018767,2]
[350741320,1738098648613,-564.49,0.00018767,2]
[350741323,1738098648623,-2015.92,0.00018767,2]
[350741325,1738098648633,-517.07,0.00018767,2]
[350741327,1738098648644,-3131.75,0.00018767,2]
[350741329,1738098648654,-1177.23,0.00018767,2]
[350741331,1738098648664,-668.64,0.00018767,2]
[350741333,1738098648674,-1446.56,0.00018767,2]
[350741335,1738098648685,-1552.76,0.00018767,2]
[350741337,1738098648696,-643.99253668,0.00018767,2]
[350741339,1738098648707,-609.19,0.00018767,2]
[350741341,1738098648717,-1124.09,0.00018767,2]
[350741343,1738098648727,-552.24,0.00018767,2]
[350741345,1738098648737,-554.44,0.00018767,2]
[350741347,1738098648748,-151.0,0.00018809,4]
[350741349,1738098648758,-1500.0,0.00018874,2]
[350741351,1738098648768,-1200.0,0.0001888,2]
[350741353,1738098648779,-151.0,0.0001888,2]
[350741355,1738098648789,-666.657,0.0001888,2]
[350741357,1738098648799,-150.0,0.000189,2]
[350741359,1738098648809,-4970.53,0.00018903,2]
[350741361,1738098648820,-1304.9,0.00018904,2]
[350741363,1738098648831,-2545.06,0.00018904,2]
[350741365,1738098648842,-767.31,0.00018904,2]
[350741368,1738098648852,-500.0,0.00018904,2]
[350741370,1738098648862,-12732.97,0.00018904,2]
[350741371,1738098648873,-500.0,0.00018904,2]
[350741373,1738098648883,-500.0,0.00018904,2]
[350741375,1738098648893,-1265.09,0.00018904,2]
[350741378,1738098648904,-763.67,0.00018904,2]
[350741380,1738098648914,-1836.67,0.00018904,2]
[350741381,1738098648924,-537.13,0.00018904,2]
[350741383,1738098648934,-4106.69,0.00018904,2]
[350741385,1738098648945,-564.49,0.00018904,2]
[350741387,1738098648954,-2015.92,0.00018904,2]
[350741389,1738098648964,-517.07,0.00018904,2]
[350741391,1738098648975,-3131.75,0.00018904,2]
[350741393,1738098648985,-1177.23,0.00018904,2]
[350741395,1738098648995,-668.64,0.00018904,2]
[350741397,1738098649005,-1446.56,0.00018904,2]
[350741399,1738098649020,-1552.76,0.00018904,2]
[350741402,1738098649031,-609.19,0.00018904,2]
[350741404,1738098649041,-1124.09,0.00018904,2]
[350741406,1738098649050,-552.24,0.00018904,2]
[350741408,1738098649062,-554.44,0.00018904,2]
[350741409,1738098649072,-200.0,0.00018986,2]
[350741424,1738098649207,-4970.53,0.0001904,2]
[350741426,1738098649217,-1304.9,0.00019041,2]
[350741428,1738098649228,-2545.06,0.00019041,2]
[350741430,1738098649238,-767.31,0.00019041,2]
[350741431,1738098649248,-500.0,0.00019041,2]
[350741433,1738098649258,-12732.97,0.00019041,2]
[350741435,1738098649267,-500.0,0.00019041,2]
[350741437,1738098649277,-500.0,0.00019041,2]
[350741439,1738098649286,-1265.09,0.00019041,2]
[350741441,1738098649297,-763.67,0.00019041,2]
[350741443,1738098649307,-1836.67,0.00019041,2]
[350741445,1738098649316,-537.13,0.00019041,2]
[350741447,1738098649327,-4106.69,0.00019041,2]
[350741449,1738098649336,-564.49,0.00019041,2]
[350741452,1738098649346,-2015.92,0.00019041,2]
[350741453,1738098649356,-517.07,0.00019041,2]
[350741455,1738098649366,-3131.75,0.00019041,2]
[350741458,1738098649376,-1177.23,0.00019041,2]
[350741459,1738098649386,-668.64,0.00019041,2]
[350741461,1738098649396,-1446.56,0.00019041,2]
[350741463,1738098649406,-1552.76,0.00019041,2]
[350741465,1738098649416,-609.19,0.00019041,2]
[350741467,1738098649426,-1124.09,0.00019041,2]
[350741470,1738098649436,-552.24,0.00019041,2]
[350741472,1738098649445,-554.44,0.00019041,2]
[350741474,1738098649455,-300.0,0.000191,8]
[350741475,1738098649464,-5221.39,0.000191,2]
[350741477,1738098649474,-4970.53,0.00019177,2]
[350741480,1738098649484,-500.0,0.00019178,2]
[350741481,1738098649493,-500.0,0.00019178,2]
[350741483,1738098649503,-500.0,0.00019178,2]
[350741485,1738098649513,-500.0,0.00019178,2]
[350741487,1738098649523,-470.4817365,0.00019178,2]
[350741489,1738098649532,-1304.9,0.00019178,2]
[350741491,1738098649543,-2545.06,0.00019178,2]
[350741493,1738098649553,-767.31,0.00019178,2]
[350741495,1738098649562,-326.24601293,0.00019178,2]
[350741497,1738098649572,-12732.97,0.00019178,2]
[350741499,1738098649581,-500.0,0.00019178,2]
[350741501,1738098649591,-548.58,0.00019178,2]
[350741503,1738098649600,-1265.09,0.00019178,2]
[350741504,1738098649610,-763.67,0.00019178,2]
[350741506,1738098649620,-1836.67,0.00019178,2]
[350741508,1738098649629,-537.13,0.00019178,2]
[350741510,1738098649639,-4106.69,0.00019178,2]
[350741512,1738098649649,-500.0,0.00019178,7]
[350741514,1738098649659,-564.49,0.00019178,2]
[350741516,1738098649669,-2015.92,0.00019178,2]
[350741518,1738098649679,-517.07,0.00019178,2]
[350741520,1738098649689,-3131.75,0.00019178,2]
[350741522,1738098649699,-1177.23,0.00019178,2]
[350741524,1738098649709,-668.64,0.00019178,2]
[350741526,1738098649719,-1446.56,0.00019178,2]
[350741528,1738098649728,-1552.76,0.00019178,2]
[350741530,1738098649739,-609.19,0.00019178,2]
[350741532,1738098649748,-1124.09,0.00019178,2]
[350741534,1738098649758,-552.24,0.00019178,2]
[350741536,1738098649768,-554.44,0.00019178,2]
[350741538,1738098649777,-172.043055,0.00019178,2]
[350741540,1738098649786,-151.0,0.00019179,4]
[350741541,1738098649796,-4970.53,0.00019314,2]
[350741543,1738098649806,-1304.9,0.00019315,2]
[350741545,1738098649818,-2545.06,0.00019315,2]
[350741547,1738098649828,-767.31,0.00019315,2]
[350741549,1738098649837,-12732.97,0.00019315,2]
[350741551,1738098649847,-637.82086953,0.00019315,2]
[350741553,1738098649857,-1265.09,0.00019315,2]
[350741556,1738098649867,-763.67,0.00019315,2]
[350741557,1738098649876,-1836.67,0.00019315,2]
[350741559,1738098649885,-537.13,0.00019315,2]
[350741561,1738098649895,-4106.69,0.00019315,2]
[350741564,1738098649905,-564.49,0.00019315,2]
[350741566,1738098649915,-2015.92,0.00019315,2]
[350741567,1738098649924,-517.07,0.00019315,2]
[350741569,1738098649932,-3131.75,0.00019315,2]
[350741572,1738098649942,-1177.23,0.00019315,2]
[350741573,1738098649950,-668.64,0.00019315,2]
[350741575,1738098649959,-1446.56,0.00019315,2]
[350741577,1738098649967,-1552.76,0.00019315,2]
[350741579,1738098649977,-285.7801,0.00019315,2]
[350741581,1738098649987,-609.19,0.00019315,2]
[350741583,1738098649996,-285.7801,0.00019315,2]
[350741585,1738098650004,-1124.09,0.00019315,2]
[350741587,1738098650014,-552.24,0.00019315,2]
[350741589,1738098650028,-554.44,0.00019315,2]
[350741591,1738098650037,-150.298728,0.000194,2]
[350741593,1738098650045,-4970.53,0.00019451,2]
[350741595,1738098650053,-151.0,0.00019451,2]
[350741597,1738098650066,-1304.9,0.00019452,2]
[350741599,1738098650076,-2545.06,0.00019452,2]
[350741601,1738098650084,-767.31,0.00019452,2]
[350741603,1738098650093,-12732.97,0.00019452,2]
[350741605,1738098650104,-1265.09,0.00019452,2]
[350741607,1738098650114,-763.67,0.00019452,2]
[350741610,1738098650124,-1836.67,0.00019452,2]
[350741611,1738098650133,-537.13,0.00019452,2]
[350741613,1738098650141,-4106.69,0.00019452,2]
[350741615,1738098650148,-564.49,0.00019452,2]
[350741617,1738098650158,-151.0,0.00019452,2]
[350741619,1738098650167,-151.0,0.00019452,2]
[350741621,1738098650176,-151.0,0.00019452,2]
[350741623,1738098650185,-2015.92,0.00019452,2]
[350741625,1738098650194,-151.652202,0.00019452,2]
[350741627,1738098650204,-275.86028,0.00019452,2]
[350741630,1738098650213,-517.07,0.00019452,2]
[350741632,1738098650222,-3131.75,0.00019452,2]
[350741634,1738098650231,-1177.23,0.00019452,2]
[350741636,1738098650240,-668.64,0.00019452,2]
[350741638,1738098650249,-1446.56,0.00019452,2]
[350741640,1738098650258,-1552.76,0.00019452,2]
[350741642,1738098650268,-609.19,0.00019452,2]
[350741644,1738098650277,-1124.09,0.00019452,2]
[350741646,1738098650287,-552.24,0.00019452,2]
[350741647,1738098650296,-554.44,0.00019452,2]
[350741649,1738098650306,-157.914,0.0001947,2]
[350741651,1738098650318,-500.0,0.00019486,7]
[350741653,1738098650327,-500.0,0.00019486,7]
[350741655,1738098650336,-359.61,0.00019486,7]
[350741657,1738098650345,-151.0,0.00019548,5]
[350741659,1738098650355,-4970.53,0.00019588,2]
[350741661,1738098650364,-1305.06173797,0.00019589,2]
[350741663,1738098650373,-2545.21509536,0.00019589,2]
[350741664,1738098650380,-767.54976941,0.00019589,2]
[350741666,1738098650387,-12733.0449695,0.00019589,2]
[350741668,1738098650396,-1265.31682966,0.00019589,2]
[350741670,1738098650405,-763.83910326,0.00019589,2]
[350741672,1738098650414,-1836.90289387,0.00019589,2]
[350741674,1738098650422,-537.29033343,0.00019589,2]
[350741676,1738098650430,-4106.88639565,0.00019589,2]
[350741678,1738098650437,-564.50936457,0.00019589,2]
[350741680,1738098650447,-2016.15022021,0.00019589,2]
[350741682,1738098650455,-517.25550807,0.00019589,2]
[350741683,1738098650462,-3131.82935515,0.00019589,2]
[350741685,1738098650470,-1177.45630354,0.00019589,2]
[350741687,1738098650477,-668.82546002,0.00019589,2]
[350741689,1738098650485,-1446.78467867,0.00019589,2]
[350741691,1738098650493,-1552.98,0.00019589,2]
[350741693,1738098650502,-609.33763191,0.00019589,2]
[350741695,1738098650512,-1124.25287754,0.00019589,2]
[350741697,1738098650521,-552.45866494,0.00019589,2]
[350741699,1738098650530,-554.59621704,0.00019589,2]
[350741701,1738098650539,-5058.78,0.000196,2]
[350741703,1738098650547,-151.0,0.000197,2]
[350741705,1738098650555,-621.0,0.000197,2]
[350741707,1738098650564,-4970.53,0.00019725,2]
[350741708,1738098650572,-500.0,0.00019756,2]
[350741710,1738098650581,-2310.149498,0.00019777,7]
[350741712,1738098650590,-4970.59768596,0.00019862,2]
[350741714,1738098650600,-500.0,0.00019863,9]
[350741716,1738098650609,-151.0,0.00019917,5]
[350741718,1738098650617,-5025.0,0.0002,2]
[350741720,1738098650626,-151.0,0.000201,3]
[350741722,1738098650635,-776.22002883,0.00020237,2]
[350741724,1738098650644,-2500.0,0.00020255,2]
[350741726,1738098650653,-2500.0,0.00020264,2]
[350741728,1738098650662,-2500.0,0.00020273,2]
[350741730,1738098650671,-298.0,0.0002028,3]
[350741732,1738098650680,-210.9639981,0.00020281,2]
[350741733,1738098650687,-2500.0,0.00020282,2]
[350741735,1738098650695,-151.0,0.00020286,5]
[350741737,1738098650702,-2500.0,0.0002029,2]
[350741739,1738098650710,-1000.0,0.00020291,2]
[350741741,1738098650720,-2500.0,0.00020299,2]
[350741743,1738098650728,-2500.0,0.00020299,2]
[350741745,1738098650736,-467.599959,0.00020301,2]
[350741747,1738098650744,-823.0,0.00020304,2]
[350741749,1738098650753,-2500.0,0.00020308,2]
[350741750,1738098650761,-2500.0,0.00020308,2]
[350741752,1738098650770,-1372.79967469,0.00020308,2]
[350741754,1738098650778,-1000.0,0.00020346,2]
[350741756,1738098650787,-1207.206654,0.0002038,5]
[350741758,1738098650796,-717.73343267,0.00020387,2]
[350741760,1738098650804,-986.2,0.000204,2]
[350741762,1738098650814,-1000.0,0.000204,5]
[350741764,1738098650822,-150.0,0.000204,2]
[350741766,1738098650832,-1000.0,0.00020435,2]
[350741768,1738098650842,-240.087498,0.00020447,2]
[350741769,1738098650848,-1000.0,0.00020467,2]
[350741771,1738098650857,-500.0,0.00020473,2]
[350741773,1738098650866,-151.0,0.00020485,2]
[350741775,1738098650874,-151.00893866,0.00020486,2]
[350741777,1738098650883,-151.0,0.00020486,2]
[350741779,1738098650891,-151.0,0.00020486,2]
[350741781,1738098650900,-192.704968,0.00020486,2]
[350741783,1738098650911,-151.0,0.00020486,2]
[350741785,1738098650919,-151.0,0.00020486,2]
[350741787,1738098650928,-151.0,0.00020486,2]
[350741789,1738098650937,-151.0,0.00020486,2]
[350741791,1738098650945,-151.0,0.00020486,2]
[350741793,1738098650955,-151.0,0.00020486,2]
[350741795,1738098650963,-151.0,0.00020486,2]
[350741797,1738098650973,-151.0,0.00020486,2]
[350741799,1738098650981,-151.0,0.00020486,2]
[350741801,1738098650990,-151.0,0.00020486,2]
[350741803,1738098650999,-151.0,0.00020486,2]
[350741805,1738098651009,-238.041626,0.00020486,2]
[350741807,1738098651023,-151.0,0.00020486,2]
[350741818,1738098651131,-285.7801,0.00020486,2]
[350741820,1738098651141,-285.7801,0.00020486,2]
[350741822,1738098651151,-151.0,0.00020486,2]
[350741824,1738098651162,-351737.7940137,0.00020486,15]
[350741835,1738098651257,-5680.12656628,0.00020486,15]
[350741837,1738098651269,-16965.517783,0.00020486,15]
[350741839,1738098651281,-2000.0,0.00020486,15]
[350741848,1738098651370,-500.0,0.00016438,2]
[350741850,1738098651379,-40.2909597,0.00016438,2]
[350741852,1738098651391,-459.7090403,0.00016438,2]
[350741854,1738098651400,-500.0,0.00016575,2]
[350741856,1738098651410,-500.0,0.00018219,2]
[350741858,1738098651420,-144233.78967005,0.00020486,15]
[350741861,1738098651444,-437.00618396,0.00016438,2]
[350741877,1738098651601,-146.49552332,0.00016438,2]
[350741879,1738098651610,-500.0,0.00016438,2]
[350741881,1738098651619,-500.0,0.00016438,2]
[350741883,1738098651628,-500.0,0.00016438,2]
[350741884,1738098651637,-500.0,0.00016575,2]
[350741886,1738098651647,-500.0,0.00016575,2]
[350741888,1738098651657,-185.74,0.00016712,2]
[350741890,1738098651666,-500.0,0.00016712,2]
[350741892,1738098651676,-8813.90379169,0.00020486,15]
[350741918,1738098651931,-500.0,0.00016438,2]
[350741920,1738098651942,-500.0,0.00016438,2]
[350741922,1738098651952,-500.0,0.00016575,2]
[350741924,1738098651961,-500.0,0.00016575,2]
[350741926,1738098651970,-500.0,0.00016712,2]
[350741928,1738098651980,-500.0,0.00016712,2]
[350741929,1738098651990,-500.0,0.00016849,2]
[350741931,1738098651999,-500.0,0.00016849,2]
[350741933,1738098652008,-500.0,0.00016849,2]
[350741935,1738098652019,-500.0,0.00016986,2]
[350741937,1738098652034,-500.0,0.00016986,2]
[350741939,1738098652045,-500.0,0.00016986,2]
[350741941,1738098652054,-500.0,0.00017123,2]
[350741943,1738098652066,-500.0,0.00017123,2]
[350741945,1738098652076,-500.0,0.00017123,2]
[350741947,1738098652085,-500.0,0.0001726,2]
[350741949,1738098652095,-531.03,0.0001726,2]
[350741951,1738098652105,-500.0,0.0001726,2]
[350741953,1738098652114,-500.0,0.00017397,2]
[350741955,1738098652123,-500.0,0.00017534,2]
[350741957,1738098652133,-500.0,0.00017671,2]
[350741959,1738098652143,-500.0,0.00017808,2]
[350741961,1738098652153,-214.32,0.00017945,2]
[350741963,1738098652163,-6462.7244462,0.00020486,15]
[350741965,1738098652175,-3962.74412907,0.00020486,15]
[350741968,1738098652193,-500.0,0.00016438,2]
[350741969,1738098652205,-226.97,0.00020486,15]
[350741971,1738098652216,-499.8,0.00020486,15]
[350741974,1738098652233,-459.59,0.00017397,2]
[350741976,1738098652242,-15851.58865438,0.00020486,15]
[350741978,1738098652252,-512.5,0.00020487,15]
[350741980,1738098652262,-459.24922754,0.00020492,2]